fUSD/lending_fUSD_20260615
["ID","MTS","AMOUNT","RATE_DAILY","PERIOD"]
[425082553,1781472644000,-500.0,0.00014847,2]
[425082559,1781472644000,-500.0,0.00014847,2]
[425082554,1781472644000,-500.0,0.00014847,2]
[425082575,1781472644000,-500.0,0.00014847,2]
[425082548,1781472644000,-375.0,0.00014832,2]
[425082524,1781472644000,-551.0,0.00014758,2]
[425082529,1781472644000,-1318.77048402,0.00014767,2]
[425082525,1781472644000,-459.0,0.0001476,2]
[425082526,1781472644000,-347.0,0.00014763,2]
[425082527,1781472644000,-377.0,0.00014766,2]
[425082528,1781472644000,-375.0,0.00014766,2]
[425082532,1781472644000,-375.0,0.0001478,2]
[425082531,1781472644000,-375.0,0.00014779,2]
[425082530,1781472644000,-296.61027197,0.00014775,2]
[425082533,1781472644000,-1318.77048402,0.00014783,2]
[425082534,1781472644000,-377.0,0.00014791,2]
[425082549,1781472644000,-1318.77048402,0.00014833,2]
[425082540,1781472644000,-375.0,0.00014811,2]
[425082537,1781472644000,-293.49464052,0.00014797,2]
[425082535,1781472644000,-437.56438244,0.00014792,2]
[425082536,1781472644000,-500.0,0.00014792,2]
[425082545,1781472644000,-271.22308672,0.00014825,2]
[425082542,1781472644000,-375.0,0.00014816,2]
[425082538,1781472644000,-296.61027197,0.000148,2]
[425082539,1781472644000,-1318.77048402,0.000148,2]
[425082544,1781472644000,-296.61027197,0.00014825,2]
[425082543,1781472644000,-1318.77048402,0.00014817,2]
[425082547,1781472644000,-375.0,0.0001483,2]
[425082546,1781472644000,-437.56438244,0.00014828,2]
[425082541,1781472644000,-375.0,0.00014813,2]
[425082580,1781472644000,-637.42,0.00014847,2]
[425082632,1781472644000,-296.61027197,0.000149,2]
[425082578,1781472644000,-637.42,0.00014847,2]
[425082601,1781472644000,-296.61027197,0.0001485,2]
[425082609,1781472644000,-375.0,0.00014863,2]
[425082604,1781472644000,-1650.74848,0.0001485,2]
[425082611,1781472644000,-1318.77048402,0.00014867,2]
[425082622,1781472644000,-1318.77048402,0.00014883,2]
[425082612,1781472644000,-219.84,0.00014871,2]
[425082615,1781472644000,-496.51305886,0.00014878,2]
[425082616,1781472644000,-200.0,0.00014879,2]
[425082613,1781472644000,-5800.0,0.00014874,2]
[425082618,1781472644000,-200.0,0.0001488,2]
[425082617,1781472644000,-200.0,0.00014879,2]
[425082602,1781472644000,-1650.74848,0.0001485,2]
[425082619,1781472644000,-375.0,0.00014881,2]
[425082621,1781472644000,-5800.0,0.00014883,2]
[425082624,1781472644000,-375.0,0.00014891,2]
[425082628,1781472644000,-171.955,0.00014892,2]
[425082631,1781472644000,-375.0,0.000149,2]
[425082625,1781472644000,-25000.0,0.00014891,3]
[425082623,1781472644000,-304.2575411,0.00014885,2]
[425082630,1781472644000,-10000.0,0.000149,2]
[425082627,1781472644000,-2387.237,0.00014892,2]
[425082626,1781472644000,-5800.0,0.00014891,2]
[425082629,1781472644000,-304.25754108,0.00014893,2]
[425082576,1781472644000,-500.0,0.00014847,2]
[425082620,1781472644000,-961.0,0.00014883,5]
[425082605,1781472644000,-1318.77048402,0.0001485,2]
[425082614,1781472644000,-296.61027197,0.00014875,2]
[425082608,1781472644000,-375.0,0.00014858,2]
[425082603,1781472644000,-1650.74849,0.0001485,2]
[425082577,1781472644000,-500.0,0.00014847,2]
[425082582,1781472644000,-637.42,0.00014847,2]
[425082584,1781472644000,-637.42,0.00014847,2]
[425082585,1781472644000,-500.0,0.00014847,2]
[425082586,1781472644000,-500.0,0.00014847,2]
[425082583,1781472644000,-637.42,0.00014847,2]
[425082587,1781472644000,-500.0,0.00014847,2]
[425082589,1781472644000,-500.0,0.00014847,2]
[425082590,1781472644000,-415.12475003,0.00014847,2]
[425082591,1781472644000,-250.0,0.00014847,2]
[425082596,1781472644000,-500.0,0.00014847,2]
[425082579,1781472644000,-637.42,0.00014847,2]
[425082607,1781472644000,-375.0,0.00014857,2]
[425082595,1781472644000,-500.0,0.00014847,2]
[425082606,1781472644000,-403.0,0.00014856,2]
[425082599,1781472644000,-500.0,0.00014847,2]
[425082600,1781472644000,-9993.67622431,0.0001485,2]
[425082598,1781472644000,-500.0,0.00014847,2]
[425082610,1781472644000,-437.56438244,0.00014864,2]
[425082592,1781472644000,-3000.0,0.00014847,2]
[425082597,1781472644000,-500.0,0.00014847,2]
[425082588,1781472644000,-500.0,0.00014847,2]
[425082594,1781472644000,-500.0,0.00014847,2]
[425082593,1781472644000,-500.0,0.00014847,2]
[425082666,1781472645000,-500.0,0.00014947,2]
[425082667,1781472645000,-500.0,0.00014947,2]
[425082668,1781472645000,-500.0,0.00014947,2]
[425082676,1781472645000,-637.42,0.00014947,2]
[425082677,1781472645000,-637.42,0.00014947,2]
[425082661,1781472645000,-462.0,0.00014944,2]
[425082662,1781472645000,-377.0,0.00014947,2]
[425082663,1781472645000,-579.87,0.00014947,2]
[425082664,1781472645000,-579.87,0.00014947,2]
[425082669,1781472645000,-500.0,0.00014947,2]
[425082665,1781472645000,-579.87,0.00014947,2]
[425082675,1781472645000,-500.0,0.00014947,2]
[425082672,1781472645000,-188.13,0.00014947,2]
[425082680,1781472645000,-1166.22,0.00014947,2]
[425082673,1781472645000,-500.0,0.00014947,2]
[425082670,1781472645000,-500.0,0.00014947,2]
[425082674,1781472645000,-500.0,0.00014947,2]
[425082678,1781472645000,-1166.22,0.00014947,2]
[425082688,1781472645000,-716.81,0.00014947,2]
[425082679,1781472645000,-1166.22,0.00014947,2]
[425082689,1781472645000,-716.81,0.00014947,2]
[425082687,1781472645000,-716.81,0.00014947,2]
[425082686,1781472645000,-716.81,0.00014947,2]
[425082683,1781472645000,-1166.22,0.00014947,2]
[425082685,1781472645000,-716.81,0.00014947,2]
[425082671,1781472645000,-500.0,0.00014947,2]
[425082660,1781472645000,-375.0,0.00014939,2]
[425082634,1781472645000,-304.25754108,0.000149,2]
[425082658,1781472645000,-176683.6731148,0.00014936,2]
[425082633,1781472645000,-25000.0,0.000149,3]
[425082638,1781472645000,-402.6487862,0.000149,2]
[425082637,1781472645000,-271.22308672,0.000149,2]
[425082639,1781472645000,-437.56438244,0.000149,2]
[425082641,1781472645000,-296.99088574,0.000149,2]
[425082636,1781472645000,-1268.20549833,0.000149,2]
[425082642,1781472645000,-350.0,0.00014902,2]
[425082643,1781472645000,-377.0,0.00014908,2]
[425082635,1781472645000,-5800.0,0.000149,2]
[425082640,1781472645000,-1318.77048402,0.000149,2]
[425082644,1781472645000,-462.0,0.00014916,2]
[425082650,1781472645000,-500.0,0.00014933,2]
[425082647,1781472645000,-375.0,0.00014922,2]
[425082652,1781472645000,-500.0,0.00014935,2]
[425082645,1781472645000,-375.0,0.00014919,2]
[425082646,1781472645000,-291.0,0.00014922,2]
[425082649,1781472645000,-500.0,0.00014932,2]
[425082684,1781472645000,-1166.22,0.00014947,2]
[425082648,1781472645000,-375.0,0.00014926,2]
[425082653,1781472645000,-500.0,0.00014935,2]
[425082651,1781472645000,-500.0,0.00014935,2]
[425082654,1781472645000,-148602.7330409,0.00014936,2]
[425082657,1781472645000,-24378.2202737,0.00014936,2]
[425082655,1781472645000,-18333.1341617,0.00014936,2]
[425082656,1781472645000,-409.1443748,0.00014936,2]
[425082659,1781472645000,-190.4213916,0.00014936,2]
[425082681,1781472645000,-1166.22,0.00014947,2]
[425082735,1781472645000,-121057.04077374,0.00014989,2]
[425082691,1781472645000,-716.81,0.00014947,2]
[425082719,1781472645000,-716.81,0.0001498,2]
[425082717,1781472645000,-1166.22,0.0001498,2]
[425082722,1781472645000,-716.81,0.0001498,2]
[425082723,1781472645000,-717.01,0.0001498,2]
[425082721,1781472645000,-716.81,0.0001498,2]
[425082730,1781472645000,-500.0,0.00014988,2]
[425082734,1781472645000,-500.0,0.00014988,2]
[425082739,1781472645000,-151.0,0.00014989,2]
[425082738,1781472645000,-151.0,0.00014989,2]
[425082733,1781472645000,-637.42,0.00014988,2]
[425082736,1781472645000,-151.0,0.00014989,2]
[425082742,1781472645000,-151.0,0.00014997,2]
[425082740,1781472645000,-151.0,0.00014989,2]
[425082737,1781472645000,-151.0,0.00014989,2]
[425082744,1781472645000,-500.0,0.00014998,2]
[425082751,1781472645000,-579.87,0.00014999,2]
[425082752,1781472645000,-579.87,0.00014999,2]
[425082743,1781472645000,-579.87,0.00014998,2]
[425082746,1781472645000,-464.06647168,0.00014999,2]
[425082745,1781472645000,-363.80060402,0.00014999,2]
[425082750,1781472645000,-579.87,0.00014999,2]
[425082748,1781472645000,-579.87,0.00014999,2]
[425082749,1781472645000,-579.87,0.00014999,2]
[425082747,1781472645000,-579.87,0.00014999,2]
[425082682,1781472645000,-1166.22,0.00014947,2]
[425082716,1781472645000,-1166.22,0.0001498,2]
[425082718,1781472645000,-1166.22,0.0001498,2]
[425082741,1781472645000,-151.0,0.00014996,2]
[425082714,1781472645000,-1166.22,0.0001498,2]
[425082692,1781472645000,-200.0,0.00014948,2]
[425082693,1781472645000,-200.0,0.00014948,2]
[425082694,1781472645000,-200.0,0.00014948,2]
[425082700,1781472645000,-375.0,0.00014957,2]
[425082695,1781472645000,-200.0,0.00014948,2]
[425082697,1781472645000,-375.0,0.00014956,2]
[425082698,1781472645000,-375.0,0.00014956,2]
[425082696,1781472645000,-375.0,0.00014951,2]
[425082699,1781472645000,-375.0,0.00014956,2]
[425082703,1781472645000,-151.0,0.0001497,2]
[425082712,1781472645000,-637.42,0.0001498,2]
[425082704,1781472645000,-151.0,0.0001497,2]
[425082702,1781472645000,-375.0,0.00014967,2]
[425082690,1781472645000,-716.81,0.00014947,2]
[425082706,1781472645000,-151.0,0.00014978,2]
[425082725,1781472645000,-1311.0,0.0001498,5]
[425082727,1781472645000,-151.0,0.00014985,2]
[425082715,1781472645000,-1166.22,0.0001498,2]
[425082713,1781472645000,-637.42,0.0001498,2]
[425082710,1781472645000,-500.0,0.0001498,2]
[425082705,1781472645000,-151.0,0.00014978,2]
[425082707,1781472645000,-344.0,0.0001498,2]
[425082708,1781472645000,-579.87,0.0001498,2]
[425082720,1781472645000,-716.81,0.0001498,2]
[425082701,1781472645000,-151.0,0.00014959,2]
[425082711,1781472645000,-266.19855896,0.0001498,2]
[425082709,1781472645000,-500.0,0.0001498,2]
[425082792,1781472646000,-500.0,0.00014999,2]
[425082791,1781472646000,-500.0,0.00014999,2]
[425082779,1781472646000,-637.42,0.00014999,2]
[425082789,1781472646000,-500.0,0.00014999,2]
[425082786,1781472646000,-500.0,0.00014999,2]
[425082784,1781472646000,-500.0,0.00014999,2]
[425082782,1781472646000,-637.42,0.00014999,2]
[425082790,1781472646000,-500.0,0.00014999,2]
[425082788,1781472646000,-500.0,0.00014999,2]
[425082783,1781472646000,-637.57955664,0.00014999,2]
[425082781,1781472646000,-637.42,0.00014999,2]
[425082793,1781472646000,-500.0,0.00014999,2]
[425082794,1781472646000,-500.0,0.00014999,2]
[425082799,1781472646000,-500.0,0.00014999,2]
[425082787,1781472646000,-500.0,0.00014999,2]
[425082801,1781472646000,-500.0,0.00014999,2]
[425082797,1781472646000,-500.0,0.00014999,2]
[425082798,1781472646000,-500.0,0.00014999,2]
[425082796,1781472646000,-500.0,0.00014999,2]
[425082795,1781472646000,-500.0,0.00014999,2]
[425082802,1781472646000,-500.0,0.00014999,2]
[425082804,1781472646000,-500.0,0.00014999,2]
[425082805,1781472646000,-500.0,0.00014999,2]
[425082808,1781472646000,-500.0,0.00014999,2]
[425082800,1781472646000,-500.0,0.00014999,2]
[425082785,1781472646000,-500.0,0.00014999,2]
[425082774,1781472646000,-637.42,0.00014999,2]
[425082778,1781472646000,-637.42,0.00014999,2]
[425082753,1781472646000,-579.87,0.00014999,2]
[425082754,1781472646000,-579.98450446,0.00014999,2]
[425082755,1781472646000,-500.0,0.00014999,2]
[425082756,1781472646000,-500.0,0.00014999,2]
[425082760,1781472646000,-500.0,0.00014999,2]
[425082759,1781472646000,-500.0,0.00014999,2]
[425082764,1781472646000,-500.0,0.00014999,2]
[425082758,1781472646000,-564.89531058,0.00014999,2]
[425082761,1781472646000,-500.0,0.00014999,2]
[425082757,1781472646000,-500.0,0.00014999,2]
[425082762,1781472646000,-500.0,0.00014999,2]
[425082765,1781472646000,-500.0,0.00014999,2]
[425082763,1781472646000,-500.0,0.00014999,2]
[425082767,1781472646000,-500.0,0.00014999,2]
[425082775,1781472646000,-637.42,0.00014999,2]
[425082776,1781472646000,-637.42,0.00014999,2]
[425082766,1781472646000,-500.0,0.00014999,2]
[425082777,1781472646000,-637.42,0.00014999,2]
[425082769,1781472646000,-500.0,0.00014999,2]
[425082768,1781472646000,-500.0,0.00014999,2]
[425082771,1781472646000,-239.0,0.00014999,2]
[425082770,1781472646000,-500.0,0.00014999,2]
[425082772,1781472646000,-637.42,0.00014999,2]
[425082773,1781472646000,-637.42,0.00014999,2]
[425082806,1781472646000,-500.0,0.00014999,2]
[425082780,1781472646000,-637.42,0.00014999,2]
[425082809,1781472646000,-500.0,0.00014999,2]
[425082803,1781472646000,-500.0,0.00014999,2]
[425082810,1781472646000,-500.0,0.00014999,2]
[425082840,1781472646000,-500.0,0.00014999,2]
[425082843,1781472646000,-500.0,0.00014999,2]
[425082811,1781472646000,-500.0,0.00014999,2]
[425082841,1781472646000,-500.0,0.00014999,2]
[425082844,1781472646000,-500.0,0.00014999,2]
[425082842,1781472646000,-500.0,0.00014999,2]
[425082848,1781472646000,-500.0,0.00014999,2]
[425082847,1781472646000,-500.0,0.00014999,2]
[425082849,1781472646000,-500.0,0.00014999,2]
[425082850,1781472646000,-500.0,0.00014999,2]
[425082852,1781472646000,-500.0,0.00014999,2]
[425082853,1781472646000,-500.0,0.00014999,2]
[425082856,1781472646000,-500.0,0.00014999,2]
[425082854,1781472646000,-500.0,0.00014999,2]
[425082851,1781472646000,-500.0,0.00014999,2]
[425082855,1781472646000,-500.0,0.00014999,2]
[425082857,1781472646000,-500.0,0.00014999,2]
[425082858,1781472646000,-500.0,0.00014999,2]
[425082861,1781472646000,-500.0,0.00014999,2]
[425082860,1781472646000,-500.0,0.00014999,2]
[425082865,1781472646000,-500.0,0.00014999,2]
[425082864,1781472646000,-500.0,0.00014999,2]
[425082862,1781472646000,-500.0,0.00014999,2]
[425082859,1781472646000,-500.0,0.00014999,2]
[425082863,1781472646000,-500.0,0.00014999,2]
[425082839,1781472646000,-500.0,0.00014999,2]
[425082845,1781472646000,-500.0,0.00014999,2]
[425082846,1781472646000,-500.0,0.00014999,2]
[425082838,1781472646000,-500.0,0.00014999,2]
[425082812,1781472646000,-500.0,0.00014999,2]
[425082807,1781472646000,-500.0,0.00014999,2]
[425082817,1781472646000,-500.0,0.00014999,2]
[425082815,1781472646000,-500.0,0.00014999,2]
[425082824,1781472646000,-500.0,0.00014999,2]
[425082813,1781472646000,-500.0,0.00014999,2]
[425082819,1781472646000,-500.0,0.00014999,2]
[425082837,1781472646000,-500.0,0.00014999,2]
[425082816,1781472646000,-500.0,0.00014999,2]
[425082823,1781472646000,-500.0,0.00014999,2]
[425082820,1781472646000,-500.0,0.00014999,2]
[425082821,1781472646000,-500.0,0.00014999,2]
[425082818,1781472646000,-500.0,0.00014999,2]
[425082832,1781472646000,-500.0,0.00014999,2]
[425082830,1781472646000,-500.0,0.00014999,2]
[425082822,1781472646000,-500.0,0.00014999,2]
[425082827,1781472646000,-500.0,0.00014999,2]
[425082828,1781472646000,-500.0,0.00014999,2]
[425082829,1781472646000,-500.0,0.00014999,2]
[425082826,1781472646000,-500.0,0.00014999,2]
[425082833,1781472646000,-500.0,0.00014999,2]
[425082836,1781472646000,-500.0,0.00014999,2]
[425082834,1781472646000,-500.0,0.00014999,2]
[425082825,1781472646000,-500.0,0.00014999,2]
[425082835,1781472646000,-500.0,0.00014999,2]
[425082831,1781472646000,-500.0,0.00014999,2]
[425082874,1781472647000,-418104.32973196,0.00015,2]
[425082876,1781472647000,-5952.52238824,0.00015,2]
[425082872,1781472647000,-250.0,0.00015,2]
[425082873,1781472647000,-3000.0,0.00015,2]
[425082875,1781472647000,-500.0,0.00014999,2]
[425082871,1781472647000,-300.0,0.00014999,2]
[425082868,1781472647000,-300.0,0.00014999,2]
[425082867,1781472647000,-500.0,0.00014999,2]
[425082869,1781472647000,-300.0,0.00014999,2]
[425082870,1781472647000,-300.0,0.00014999,2]
[425082878,1781472647000,-640.10012958,0.00015,2]
[425082866,1781472647000,-500.0,0.00014999,2]
[425082877,1781472647000,-2282.74932127,0.00015,2]
[425082880,1781472647000,-5362.89616142,0.00015,2]
[425082882,1781472647000,-500.0,0.00014178,2]
[425082881,1781472647000,-500.0,0.00014178,2]
[425082884,1781472647000,-861.0,0.00014178,2]
[425082885,1781472647000,-500.0,0.00014999,2]
[425082883,1781472647000,-500.0,0.00014178,2]
[425082887,1781472647000,-500.0,0.00014999,2]
[425082889,1781472647000,-500.0,0.00014999,2]
[425082886,1781472647000,-500.0,0.00014999,2]
[425082888,1781472647000,-500.0,0.00014999,2]
[425082879,1781472647000,-797.476701,0.00015,2]
[425082890,1781472648000,-500.0,0.00014999,2]
[425082892,1781472648000,-500.0,0.00014999,2]
[425082893,1781472648000,-500.0,0.00014999,2]
[425082894,1781472648000,-326577.41737588,0.00015,2]
[425082896,1781472648000,-964.47771859,0.00015,2]
[425082891,1781472648000,-500.0,0.00014999,2]
[425082895,1781472648000,-51744.10670556,0.00015,2]
[425082898,1781473684000,-166.66,0.0001143,2]
[425082899,1781473737000,-937.26295732,0.00011571,2]
[425082900,1781473754000,-166.66,0.00011671,2]
[425082901,1781473765000,175.87,0.00011429,2]
[425082902,1781473790000,-150.0,0.00011678,2]
[425082927,1781473832000,-500.0,0.00011781,2]
[425082929,1781473832000,-395.94305501,0.00011781,2]
[425082930,1781473832000,-500.0,0.00011781,2]
[425082931,1781473832000,-500.0,0.00011781,2]
[425082932,1781473832000,-500.0,0.00011781,2]
[425082935,1781473832000,-500.0,0.00011781,2]
[425082934,1781473832000,-627.05600279,0.00011781,2]
[425082936,1781473832000,-500.0,0.00011781,2]
[425082937,1781473832000,-500.0,0.00011781,2]
[425082926,1781473832000,-500.0,0.00011781,2]
[425082933,1781473832000,-500.0,0.00011781,2]
[425082925,1781473832000,-500.0,0.00011781,2]
[425082916,1781473832000,-157.35,0.00011761,2]
[425082922,1781473832000,-500.0,0.00011781,2]
[425082923,1781473832000,-500.0,0.00011781,2]
[425082918,1781473832000,-300.0,0.0001178,2]
[425082924,1781473832000,-500.0,0.00011781,2]
[425082917,1781473832000,-173.05383907,0.00011763,2]
[425082921,1781473832000,-500.0,0.00011781,2]
[425082920,1781473832000,-500.0,0.00011781,2]
[425082914,1781473832000,-152.57,0.00011741,2]
[425082915,1781473832000,-1044.0716675,0.00011761,2]
[425082938,1781473832000,-500.0,0.00011781,2]
[425082913,1781473832000,-175.87,0.00011715,2]
[425082912,1781473832000,-187.0,0.00011686,2]
[425082928,1781473832000,-104.05694499,0.00011781,2]
[425082940,1781473832000,-500.0,0.00011781,2]
[425082919,1781473832000,-481.45531838,0.00011781,2]
[425082939,1781473832000,-500.0,0.00011781,2]
[425082943,1781473832000,-500.0,0.00011781,2]
[425082960,1781473832000,-384.3903,0.00012193,2]
[425082962,1781473832000,-6526.65,0.00012209,2]
[425082967,1781473832000,-784.15894782,0.00012349,2]
[425082964,1781473832000,-310.01,0.00012265,2]
[425082966,1781473832000,-184.24,0.00012329,2]
[425082965,1781473832000,-175.87,0.00012286,2]
[425082963,1781473832000,-564.92,0.00012251,2]
[425082961,1781473832000,-632.03,0.00012199,2]
[425082959,1781473832000,-2645.89,0.00012156,2]
[425082957,1781473832000,-36108.6086,0.00012109,2]
[425082955,1781473832000,-166.66,0.00011911,2]
[425082956,1781473832000,-175.87,0.00012,2]
[425082958,1781473832000,-166.66,0.00012152,2]
[425082953,1781473832000,-168.50250864,0.00011821,2]
[425082941,1781473832000,-500.0,0.00011781,2]
[425082944,1781473832000,-500.0,0.00011781,2]
[425082942,1781473832000,-500.0,0.00011781,2]
[425082952,1781473832000,-500.0,0.00011821,2]
[425082946,1781473832000,-223.99138254,0.00011782,2]
[425082947,1781473832000,-524.38861746,0.00011782,2]
[425082945,1781473832000,-500.0,0.00011781,2]
[425082949,1781473832000,-630.7155971,0.00011821,2]
[425082951,1781473832000,-500.0,0.00011821,2]
[425082950,1781473832000,-207.68276714,0.00011821,2]
[425082954,1781473832000,-1547.15,0.00011823,2]
[425082948,1781473832000,-256.48,0.00011802,2]
[425082971,1781473833000,-166.66,0.00012393,2]
[425082968,1781473833000,-513.10105218,0.00012349,2]
[425082969,1781473833000,-693.31048798,0.00012375,2]
[425082970,1781473833000,-1159.10951202,0.00012375,2]
[425082972,1781473833000,-179.44,0.0001242,2]
[425082982,1781473833000,-240.85416246,0.00013398,2]
[425082973,1781473833000,-175.87,0.00012572,2]
[425082978,1781473833000,-163.32,0.00012942,2]
[425082974,1781473833000,-200.0,0.0001262,2]
[425082976,1781473833000,-166.83,0.00012679,2]
[425082981,1781473833000,-1047.97376743,0.00013397,3]
[425082977,1781473833000,-184.59,0.00012771,2]
[425082980,1781473833000,-3000.0,0.00013245,2]
[425082979,1781473833000,-250.0,0.00013245,2]
[425082975,1781473833000,-166.66,0.00012633,2]
[425082983,1781473833000,-42169.60014059,0.00013398,2]
[425083030,1781473838000,-500.0,0.00013698,2]
[425083028,1781473838000,-151.42762908,0.00013687,2]
[425083037,1781473838000,-570.32,0.00013698,2]
[425083036,1781473838000,-570.32,0.00013698,2]
[425083027,1781473838000,-2000.0,0.00013673,2]
[425083029,1781473838000,-500.0,0.00013697,2]
[425083025,1781473838000,-802.25695763,0.00013635,2]
[425083021,1781473838000,-500.0,0.00013524,2]
[425083020,1781473838000,-500.0,0.00013524,2]
[425083026,1781473838000,-207.42342357,0.0001367,2]
[425083032,1781473838000,-500.0,0.00013698,2]
[425083034,1781473838000,-570.32,0.00013698,2]
[425083031,1781473838000,-500.0,0.00013698,2]
[425083033,1781473838000,-570.32,0.00013698,2]
[425083047,1781473838000,-500.0,0.00013698,2]
[425083043,1781473838000,-570.32,0.00013698,2]
[425083038,1781473838000,-570.32,0.00013698,2]
[425083041,1781473838000,-570.32,0.00013698,2]
[425083045,1781473838000,-500.0,0.00013698,2]
[425083048,1781473838000,-500.0,0.00013698,2]
[425083039,1781473838000,-570.32,0.00013698,2]
[425083023,1781473838000,-161.12489956,0.00013598,2]
[425083035,1781473838000,-570.32,0.00013698,2]
[425083022,1781473838000,-3943.19112755,0.00013588,2]
[425082997,1781473838000,-2500.0,0.00013398,2]
[425083024,1781473838000,-3578.18,0.00013608,2]
[425083040,1781473838000,-570.32,0.00013698,2]
[425082995,1781473838000,-562.48008064,0.00013398,2]
[425082996,1781473838000,-847990.79421631,0.00013398,2]
[425082998,1781473838000,-207.4234236,0.00013424,2]
[425083002,1781473838000,-250.0,0.00013453,2]
[425083001,1781473838000,-3943.19112762,0.00013424,2]
[425082999,1781473838000,-150.96379356,0.00013424,2]
[425083000,1781473838000,-802.25695766,0.00013424,2]
[425083004,1781473838000,-150.0,0.00013488,2]
[425083014,1781473838000,-500.0,0.00013497,2]
[425083005,1781473838000,-150.0,0.00013488,2]
[425083003,1781473838000,-1342.89575511,0.00013474,2]
[425083006,1781473838000,-150.0,0.00013488,2]
[425083007,1781473838000,-150.0,0.00013488,2]
[425083008,1781473838000,-153.0,0.00013493,2]
[425083012,1781473838000,-500.0,0.00013497,2]
[425083010,1781473838000,-500.0,0.00013497,2]
[425083013,1781473838000,-500.0,0.00013497,2]
[425083011,1781473838000,-500.0,0.00013497,2]
[425083009,1781473838000,-899.90311098,0.00013497,2]
[425083015,1781473838000,-1050.60422367,0.00013524,3]
[425083017,1781473838000,-500.0,0.00013524,2]
[425083016,1781473838000,-500.0,0.00013524,2]
[425083019,1781473838000,-500.0,0.00013524,2]
[425083042,1781473838000,-570.32,0.00013698,2]
[425083018,1781473838000,-500.0,0.00013524,2]
[425083046,1781473838000,-500.0,0.00013698,2]
[425083095,1781473838000,-207.42342357,0.00013916,2]
[425083082,1781473838000,-500.0,0.00013698,2]
[425083084,1781473838000,-500.0,0.00013698,2]
[425083085,1781473838000,-500.0,0.00013698,2]
[425083092,1781473838000,-632.03,0.00013724,2]
[425083088,1781473838000,-1594.22,0.00013699,2]
[425083086,1781473838000,-500.0,0.00013698,2]
[425083091,1781473838000,-157.35,0.00013721,2]
[425083087,1781473838000,-200.0,0.00013699,2]
[425083089,1781473838000,-500.0,0.0001371,2]
[425083090,1781473838000,-1000.0,0.00013712,2]
[425083096,1781473838000,-3943.19112755,0.00013916,2]
[425083099,1781473838000,-257.28934228,0.00013989,2]
[425083103,1781473838000,-250.0,0.00014,2]
[425083100,1781473838000,-610.18,0.00013989,2]
[425083101,1781473838000,-500.0,0.00013989,2]
[425083105,1781473838000,-202.105689,0.00014,2]
[425083098,1781473838000,-570.32,0.00013989,2]
[425083097,1781473838000,-161.12489956,0.00013949,2]
[425083104,1781473838000,-10857.04665494,0.00014,2]
[425083102,1781473838000,-60000.0,0.0001399,2]
[425083106,1781473838000,-255.86922144,0.00014046,2]
[425083107,1781473838000,-802.25695763,0.00014057,2]
[425083094,1781473838000,-802.25695763,0.00013846,2]
[425083093,1781473838000,-3943.19112755,0.00013752,2]
[425083044,1781473838000,-500.0,0.00013698,2]
[425083108,1781473838000,-3943.19112755,0.0001408,2]